fUSD/lending_fUSD_20260613
["ID","MTS","AMOUNT","RATE_DAILY","PERIOD"]
[424970025,1781362236000,-150.0,7.002e-05,2]
[424970022,1781362236000,-150.0,6.934e-05,2]
[424970029,1781362236000,-208.90774637,7.553e-05,2]
[424970027,1781362236000,-999.99,7.11e-05,2]
[424970031,1781362236000,-299.99,7.664e-05,2]
[424970030,1781362236000,-250.0,7.662e-05,2]
[424970032,1781362236000,-12010.35,7.664e-05,2]
[424970033,1781362236000,-500.0,8.219e-05,2]
[424970035,1781362236000,-500.0,8.219e-05,2]
[424970028,1781362236000,-3881.82,7.11e-05,2]
[424970034,1781362236000,-500.0,8.219e-05,2]
[424970078,1781362237000,-321.0,0.00010299,2]
[424970076,1781362237000,-1444.21500833,0.00010299,2]
[424970077,1781362237000,-311.0,0.00010299,2]
[424970074,1781362237000,-1436.37,0.00010278,2]
[424970075,1781362237000,-1666.0436161,0.00010299,2]
[424970070,1781362237000,-1852.42,0.0001007,2]
[424970071,1781362237000,-500.0,0.00010199,2]
[424970072,1781362237000,-165.71,0.0001021,2]
[424970069,1781362237000,-1436.37,0.00010027,2]
[424970064,1781362237000,-629.21,9.681e-05,2]
[424970079,1781362237000,-316.0,0.00010299,2]
[424970073,1781362237000,-2500.0,0.00010243,2]
[424970080,1781362237000,-318.0,0.00010299,2]
[424970092,1781362237000,-500.0,0.00010747,2]
[424970082,1781362237000,-310.0,0.00010299,2]
[424970083,1781362237000,-318.0,0.00010299,2]
[424970086,1781362237000,-500.0,0.00010473,2]
[424970085,1781362237000,-8306.87789223,0.00010343,2]
[424970084,1781362237000,-309.0,0.00010299,2]
[424970087,1781362237000,-1436.37,0.00010529,2]
[424970090,1781362237000,-450.59,0.000107,2]
[424970088,1781362237000,-640.6,0.00010615,2]
[424970091,1781362237000,-252.62,0.00010711,2]
[424970066,1781362237000,-356.65,9.755e-05,2]
[424970089,1781362237000,-2623.27593902,0.00010642,2]
[424970093,1781362237000,-1436.37,0.00010779,2]
[424970094,1781362237000,-7515.10536882,0.00010863,2]
[424970081,1781362237000,-315.0,0.00010299,2]
[424970065,1781362237000,-2000.0,9.755e-05,2]
[424970056,1781362237000,-307.9,9.599e-05,2]
[424970067,1781362237000,-226.07,9.855e-05,2]
[424970037,1781362237000,-500.0,8.219e-05,2]
[424970038,1781362237000,-500.0,8.219e-05,2]
[424970036,1781362237000,-476.50475167,8.219e-05,2]
[424970040,1781362237000,-4852.98374382,8.219e-05,2]
[424970039,1781362237000,-9405.15,8.219e-05,2]
[424970041,1781362237000,-1438.88625618,8.219e-05,2]
[424970043,1781362237000,-150.99,8.219e-05,2]
[424970042,1781362237000,-4999.99,8.219e-05,2]
[424970044,1781362237000,-230.44745054,8.238e-05,2]
[424970046,1781362237000,-1583.15,8.493e-05,2]
[424970045,1781362237000,-9999.99,8.493e-05,2]
[424970049,1781362237000,-640.6,9.436e-05,2]
[424970047,1781362237000,-419.42402529,9.072e-05,2]
[424970068,1781362237000,-225.27953532,9.875e-05,2]
[424970048,1781362237000,-5384.07,9.374e-05,2]
[424970052,1781362237000,-297.54,9.49e-05,2]
[424970051,1781362237000,-3321.42,9.479e-05,2]
[424970055,1781362237000,-5803.35,9.552e-05,2]
[424970053,1781362237000,-252.62,9.521e-05,2]
[424970097,1781362237000,-150.0,0.00010959,2]
[424970054,1781362237000,-256.48,9.521e-05,2]
[424970057,1781362237000,-307.9,9.599e-05,2]
[424970061,1781362237000,-307.89,9.603e-05,2]
[424970059,1781362237000,-307.89,9.6e-05,2]
[424970060,1781362237000,-307.9,9.6e-05,2]
[424970058,1781362237000,-307.9,9.6e-05,2]
[424970062,1781362237000,-307.89,9.604e-05,2]
[424970063,1781362237000,-307.89,9.605e-05,2]
[424970050,1781362237000,-9868.49,9.479e-05,2]
[424970095,1781362237000,-150.0,0.00010959,2]
[424970124,1781362237000,-170.0,0.000134,2]
[424970098,1781362237000,-2000.0,0.00010974,2]
[424970136,1781362237000,-500.0,0.00013698,2]
[424970139,1781362237000,-500.0,0.00013698,2]
[424970138,1781362237000,-500.0,0.00013698,2]
[424970137,1781362237000,-500.0,0.00013698,2]
[424970140,1781362237000,-500.0,0.00013698,2]
[424970141,1781362237000,-500.0,0.00013698,2]
[424970144,1781362237000,-500.0,0.00013698,2]
[424970142,1781362237000,-500.0,0.00013698,2]
[424970145,1781362237000,-500.0,0.00013698,2]
[424970148,1781362237000,-500.0,0.00013698,2]
[424970146,1781362237000,-500.0,0.00013698,2]
[424970143,1781362237000,-500.0,0.00013698,2]
[424970151,1781362237000,-636.52278891,0.00013698,2]
[424970149,1781362237000,-500.0,0.00013698,2]
[424970152,1781362237000,-502.33937065,0.00013698,2]
[424970153,1781362237000,-504.68921783,0.00013698,2]
[424970150,1781362237000,-500.0,0.00013698,2]
[424970154,1781362237000,-501.63196491,0.00013698,2]
[424970156,1781362237000,-500.0,0.00013698,2]
[424970157,1781362237000,-500.0,0.00013698,2]
[424970159,1781362237000,-500.0,0.00013698,2]
[424970160,1781362237000,-500.0,0.00013698,2]
[424970158,1781362237000,-500.0,0.00013698,2]
[424970155,1781362237000,-502.40357503,0.00013698,2]
[424970161,1781362237000,-500.0,0.00013698,2]
[424970162,1781362237000,-500.0,0.00013698,2]
[424970099,1781362237000,-500.0,0.00011021,2]
[424970135,1781362237000,-500.0,0.00013698,2]
[424970131,1781362237000,-500.79163628,0.00013698,2]
[424970147,1781362237000,-500.0,0.00013698,2]
[424970126,1781362237000,-39154.70395347,0.00013599,2]
[424970132,1781362237000,-500.0,0.00013698,2]
[424970100,1781362237000,-1436.37,0.0001103,2]
[424970102,1781362237000,-285.25136818,0.00011099,2]
[424970103,1781362237000,-6384.30710505,0.00011099,2]
[424970101,1781362237000,-166.66,0.00011068,2]
[424970105,1781362237000,-154.76273732,0.00011229,2]
[424970104,1781362237000,-166.66,0.00011178,2]
[424970106,1781362237000,-166.66,0.00011288,2]
[424970110,1781362237000,-6384.30710499,0.00011771,2]
[424970108,1781362237000,-166.66,0.00011397,2]
[424970111,1781362237000,-640.6,0.00011795,2]
[424970109,1781362237000,-166.66,0.00011507,2]
[424970113,1781362237000,-6371.57,0.00011957,2]
[424970112,1781362237000,-252.62,0.00011901,2]
[424970096,1781362237000,-166.66,0.00010959,2]
[424970115,1781362237000,-166.07,0.00012329,2]
[424970117,1781362237000,-640.6,0.00012974,2]
[424970133,1781362237000,-500.0,0.00013698,2]
[424970127,1781362237000,-1555.5,0.000136,2]
[424970125,1781362237000,-2000.0,0.00013412,2]
[424970121,1781362237000,-2326.0,0.000134,2]
[424970123,1781362237000,-160.0,0.000134,2]
[424970129,1781362237000,-502.6935016,0.00013698,2]
[424970122,1781362237000,-160.0,0.000134,2]
[424970118,1781362237000,-1500.0,0.00013052,2]
[424970119,1781362237000,-252.62,0.00013091,2]
[424970116,1781362237000,-163.7,0.00012533,2]
[424970114,1781362237000,-2000.0,0.00012193,2]
[424970120,1781362237000,-5384.07,0.00013123,2]
[424970207,1781362238000,-953.22337066,0.00013699,2]
[424970204,1781362238000,-500.0,0.00013699,2]
[424970203,1781362238000,-500.0,0.00013699,2]
[424970197,1781362238000,-500.0,0.00013698,2]
[424970202,1781362238000,-200.0,0.00013699,2]
[424970200,1781362238000,-500.0,0.00013698,2]
[424970201,1781362238000,-500.0,0.00013698,2]
[424970198,1781362238000,-500.0,0.00013698,2]
[424970195,1781362238000,-500.0,0.00013698,2]
[424970192,1781362238000,-500.0,0.00013698,2]
[424970205,1781362238000,-500.0,0.00013699,2]
[424970199,1781362238000,-500.0,0.00013698,2]
[424970206,1781362238000,-953.22337066,0.00013699,2]
[424970216,1781362238000,-953.22337066,0.00013699,2]
[424970210,1781362238000,-953.22337066,0.00013699,2]
[424970211,1781362238000,-953.22337066,0.00013699,2]
[424970212,1781362238000,-953.22337066,0.00013699,2]
[424970214,1781362238000,-953.22337066,0.00013699,2]
[424970213,1781362238000,-953.22337066,0.00013699,2]
[424970215,1781362238000,-953.22337066,0.00013699,2]
[424970218,1781362238000,-953.22337066,0.00013699,2]
[424970219,1781362238000,-953.22337066,0.00013699,2]
[424970222,1781362238000,-953.22337066,0.00013699,2]
[424970221,1781362238000,-953.22337066,0.00013699,2]
[424970217,1781362238000,-953.22337066,0.00013699,2]
[424970220,1781362238000,-953.22337066,0.00013699,2]
[424970196,1781362238000,-500.0,0.00013698,2]
[424970208,1781362238000,-953.22337066,0.00013699,2]
[424970194,1781362238000,-500.0,0.00013698,2]
[424970223,1781362238000,-953.22337066,0.00013699,2]
[424970191,1781362238000,-500.0,0.00013698,2]
[424970163,1781362238000,-500.0,0.00013698,2]
[424970166,1781362238000,-500.0,0.00013698,2]
[424970165,1781362238000,-500.0,0.00013698,2]
[424970164,1781362238000,-500.0,0.00013698,2]
[424970167,1781362238000,-500.0,0.00013698,2]
[424970171,1781362238000,-188.96017217,0.00013698,2]
[424970169,1781362238000,-500.0,0.00013698,2]
[424970168,1781362238000,-500.0,0.00013698,2]
[424970170,1781362238000,-500.0,0.00013698,2]
[424970172,1781362238000,-311.03982783,0.00013698,2]
[424970173,1781362238000,-500.0,0.00013698,2]
[424970175,1781362238000,-500.0,0.00013698,2]
[424970174,1781362238000,-500.0,0.00013698,2]
[424970193,1781362238000,-500.0,0.00013698,2]
[424970176,1781362238000,-500.0,0.00013698,2]
[424970178,1781362238000,-500.0,0.00013698,2]
[424970179,1781362238000,-500.0,0.00013698,2]
[424970181,1781362238000,-500.0,0.00013698,2]
[424970184,1781362238000,-500.0,0.00013698,2]
[424970180,1781362238000,-500.0,0.00013698,2]
[424970182,1781362238000,-500.0,0.00013698,2]
[424970183,1781362238000,-500.55332276,0.00013698,2]
[424970185,1781362238000,-500.0,0.00013698,2]
[424970188,1781362238000,-500.0,0.00013698,2]
[424970187,1781362238000,-500.0,0.00013698,2]
[424970190,1781362238000,-175.48841973,0.00013698,2]
[424970189,1781362238000,-500.0,0.00013698,2]
[424970186,1781362238000,-500.0,0.00013698,2]
[424970177,1781362238000,-500.0,0.00013698,2]
[424970226,1781362238000,-953.22337066,0.00013699,2]
[424970268,1781362238000,-940.64611786,0.00013699,2]
[424970228,1781362238000,-953.22337066,0.00013699,2]
[424970255,1781362238000,-953.22337066,0.00013699,2]
[424970258,1781362238000,-953.22337066,0.00013699,2]
[424970259,1781362238000,-953.22337066,0.00013699,2]
[424970266,1781362238000,-940.64611786,0.00013699,2]
[424970262,1781362238000,-940.64611786,0.00013699,2]
[424970265,1781362238000,-940.64611786,0.00013699,2]
[424970264,1781362238000,-940.64611786,0.00013699,2]
[424970263,1781362238000,-940.64611786,0.00013699,2]
[424970270,1781362238000,-940.64611786,0.00013699,2]
[424970267,1781362238000,-940.64611786,0.00013699,2]
[424970271,1781362238000,-940.64611786,0.00013699,2]
[424970287,1781362238000,-940.64611786,0.00013699,2]
[424970269,1781362238000,-940.64611786,0.00013699,2]
[424970261,1781362238000,-940.64611786,0.00013699,2]
[424970272,1781362238000,-940.64611786,0.00013699,2]
[424970273,1781362238000,-940.64611786,0.00013699,2]
[424970277,1781362238000,-940.64611786,0.00013699,2]
[424970275,1781362238000,-940.64611786,0.00013699,2]
[424970279,1781362238000,-940.64611786,0.00013699,2]
[424970276,1781362238000,-940.64611786,0.00013699,2]
[424970278,1781362238000,-940.64611786,0.00013699,2]
[424970283,1781362238000,-940.64611786,0.00013699,2]
[424970281,1781362238000,-940.64611786,0.00013699,2]
[424970280,1781362238000,-940.64611786,0.00013699,2]
[424970282,1781362238000,-940.64611786,0.00013699,2]
[424970285,1781362238000,-940.64611786,0.00013699,2]
[424970286,1781362238000,-940.64611786,0.00013699,2]
[424970224,1781362238000,-953.22337066,0.00013699,2]
[424970274,1781362238000,-940.64611786,0.00013699,2]
[424970260,1781362238000,-953.22337066,0.00013699,2]
[424970284,1781362238000,-940.64611786,0.00013699,2]
[424970256,1781362238000,-953.22337066,0.00013699,2]
[424970257,1781362238000,-953.22337066,0.00013699,2]
[424970227,1781362238000,-953.22337066,0.00013699,2]
[424970229,1781362238000,-953.22337066,0.00013699,2]
[424970231,1781362238000,-953.22337066,0.00013699,2]
[424970232,1781362238000,-953.22337066,0.00013699,2]
[424970233,1781362238000,-953.22337066,0.00013699,2]
[424970230,1781362238000,-953.22337066,0.00013699,2]
[424970236,1781362238000,-953.22337066,0.00013699,2]
[424970234,1781362238000,-953.22337066,0.00013699,2]
[424970235,1781362238000,-953.22337066,0.00013699,2]
[424970239,1781362238000,-953.22337066,0.00013699,2]
[424970238,1781362238000,-953.22337066,0.00013699,2]
[424970241,1781362238000,-953.22337066,0.00013699,2]
[424970240,1781362238000,-953.22337066,0.00013699,2]
[424970225,1781362238000,-953.22337066,0.00013699,2]
[424970242,1781362238000,-953.22337066,0.00013699,2]
[424970237,1781362238000,-953.22337066,0.00013699,2]
[424970253,1781362238000,-953.22337066,0.00013699,2]
[424970250,1781362238000,-953.22337066,0.00013699,2]
[424970252,1781362238000,-953.22337066,0.00013699,2]
[424970249,1781362238000,-953.22337066,0.00013699,2]
[424970251,1781362238000,-953.22337066,0.00013699,2]
[424970254,1781362238000,-953.22337066,0.00013699,2]
[424970248,1781362238000,-953.22337066,0.00013699,2]
[424970243,1781362238000,-953.22337066,0.00013699,2]
[424970246,1781362238000,-953.22337066,0.00013699,2]
[424970245,1781362238000,-953.22337066,0.00013699,2]
[424970244,1781362238000,-953.22337066,0.00013699,2]
[424970247,1781362238000,-953.22337066,0.00013699,2]
[424970330,1781362239000,-500.0,0.00014976,2]
[424970326,1781362239000,-500.0,0.00014976,2]
[424970325,1781362239000,-500.0,0.00014976,2]
[424970327,1781362239000,-623.1,0.00014976,2]
[424970320,1781362239000,-152.0,0.000149,2]
[424970322,1781362239000,-500.0,0.00014976,2]
[424970318,1781362239000,-309.0,0.000149,2]
[424970323,1781362239000,-500.0,0.00014976,2]
[424970328,1781362239000,-500.0,0.00014976,2]
[424970319,1781362239000,-321.0,0.000149,2]
[424970324,1781362239000,-500.0,0.00014976,2]
[424970321,1781362239000,-500.0,0.00014976,2]
[424970335,1781362239000,-489.48,0.00015068,2]
[424970329,1781362239000,-500.0,0.00014976,2]
[424970333,1781362239000,-1351.79,0.00015,2]
[424970332,1781362239000,-163.7,0.00014983,2]
[424970334,1781362239000,-291.70626161,0.00015,2]
[424970336,1781362239000,-1734.62772924,0.00015244,2]
[424970337,1781362239000,-39154.70395339,0.00015417,2]
[424970339,1781362239000,-1002.996864,0.000156,2]
[424970340,1781362239000,-1798.80895522,0.00015792,2]
[424970342,1781362239000,-235.78746115,0.00015885,2]
[424970341,1781362239000,-1002.996864,0.000158,2]
[424970317,1781362239000,-152.0,0.000149,2]
[424970338,1781362239000,-10000.0,0.00015565,2]
[424970331,1781362239000,-500.0,0.00014977,2]
[424970314,1781362239000,-500.0,0.00014899,2]
[424970301,1781362239000,-2326.0,0.0001468,2]
[424970315,1781362239000,-319.0,0.000149,2]
[424970346,1781362239000,-1002.996864,0.000163,2]
[424970288,1781362239000,-969.67840544,0.00013699,2]
[424970291,1781362239000,-969.67840544,0.00013699,2]
[424970292,1781362239000,-969.67840544,0.00013699,2]
[424970289,1781362239000,-969.67840544,0.00013699,2]
[424970290,1781362239000,-969.67840544,0.00013699,2]
[424970295,1781362239000,-6384.30710499,0.00014037,2]
[424970294,1781362239000,-18074.24462313,0.0001399,2]
[424970293,1781362239000,-160.0,0.0001372,2]
[424970296,1781362239000,-1613.0535,0.00014148,2]
[424970297,1781362239000,-640.6,0.00014153,2]
[424970299,1781362239000,-2326.0,0.0001436,2]
[424970298,1781362239000,-252.62,0.00014281,2]
[424970304,1781362239000,-500.0,0.00014876,2]
[424970302,1781362239000,-2384.0,0.0001468,2]
[424970303,1781362239000,-1672.7364795,0.00014696,2]
[424970300,1781362239000,-2000.0,0.00014632,2]
[424970305,1781362239000,-200.0,0.0001488,2]
[424970306,1781362239000,-500.0,0.00014882,2]
[424970308,1781362239000,-500.0,0.00014889,2]
[424970307,1781362239000,-500.0,0.00014884,2]
[424970310,1781362239000,-500.0,0.00014899,2]
[424970311,1781362239000,-500.0,0.00014899,2]
[424970309,1781362239000,-500.0,0.00014892,2]
[424970312,1781362239000,-500.0,0.00014899,2]
[424970313,1781362239000,-500.0,0.00014899,2]
[424970347,1781362239000,-6384.30710499,0.00016303,2]
[424970316,1781362239000,-151.0,0.000149,2]
[424970343,1781362239000,-1002.996864,0.00016,2]
[424970377,1781362239000,-151.0,0.00017984,2]
[424970373,1781362239000,-151.0,0.00017984,2]
[424970375,1781362239000,-151.0,0.00017984,2]
[424970378,1781362239000,-151.0,0.00017984,2]
[424970380,1781362239000,-151.0,0.00017984,2]
[424970382,1781362239000,-151.0,0.00017984,2]
[424970383,1781362239000,-151.0,0.00017984,2]
[424970384,1781362239000,-151.0,0.00017984,2]
[424970381,1781362239000,-151.0,0.00017984,2]
[424970387,1781362239000,-2080.17592889,0.00017984,2]
[424970385,1781362239000,-151.0,0.00017984,2]
[424970388,1781362239000,-500.0,0.00017984,2]
[424970379,1781362239000,-151.0,0.00017984,2]
[424970386,1781362239000,-151.0,0.00017984,2]
[424970391,1781362239000,-500.0,0.00017984,2]
[424970393,1781362239000,-151.0,0.00017984,2]
[424970392,1781362239000,-151.0,0.00017984,2]
[424970394,1781362239000,-500.0,0.00017984,2]
[424970395,1781362239000,-151.0,0.00017984,2]
[424970396,1781362239000,-151.0,0.00017984,2]
[424970398,1781362239000,-151.0,0.00017984,2]
[424970400,1781362239000,-500.0,0.00017984,2]
[424970399,1781362239000,-151.0,0.00017984,2]
[424970397,1781362239000,-500.0,0.00017984,2]
[424970401,1781362239000,-151.0,0.00017984,2]
[424970345,1781362239000,-1002.996864,0.000161,2]
[424970390,1781362239000,-151.0,0.00017984,2]
[424970376,1781362239000,-151.0,0.00017984,2]
[424970389,1781362239000,-151.0,0.00017984,2]
[424970374,1781362239000,-151.0,0.00017984,2]
[424970402,1781362239000,-151.0,0.00017984,2]
[424970348,1781362239000,-1865.36488656,0.0001634,2]
[424970353,1781362239000,-24172.77710144,0.00017236,2]
[424970351,1781362239000,-166.07,0.00016767,2]
[424970352,1781362239000,-1934.38338736,0.00016888,2]
[424970354,1781362239000,-14981.92685195,0.00017236,2]
[424970350,1781362239000,-1824.0,0.00016498,2]
[424970349,1781362239000,-489.48,0.00016438,2]
[424970358,1781362239000,-1359.0,0.000175,2]
[424970355,1781362239000,-500.0,0.00017243,2]
[424970356,1781362239000,-2005.9555727,0.00017436,2]
[424970357,1781362239000,-3557.0,0.000175,2]
[424970360,1781362239000,-1275.0,0.000175,2]
[424970359,1781362239000,-383.0,0.000175,2]
[424970344,1781362239000,-186.1761242,0.00016,2]
[424970363,1781362239000,-150.0,0.000175,2]
[424970369,1781362239000,-150.0,0.000175,2]
[424970372,1781362239000,-151.0,0.00017984,2]
[424970371,1781362239000,-151.0,0.00017984,2]
[424970370,1781362239000,-150.0,0.000175,2]
[424970367,1781362239000,-150.0,0.000175,2]
[424970368,1781362239000,-170.0,0.000175,2]
[424970362,1781362239000,-150.0,0.000175,2]
[424970365,1781362239000,-150.0,0.000175,2]
[424970361,1781362239000,-1228.0,0.000175,2]
[424970366,1781362239000,-220.0,0.000175,2]
[424970364,1781362239000,-6076.0,0.000175,2]
[424970419,1781362240000,-2273.44852229,0.000185,2]
[424970421,1781362240000,-6384.30710499,0.00018569,2]
[424970426,1781362240000,-500.0,0.000189,6]
[424970423,1781362240000,-2273.44852229,0.000187,2]
[424970422,1781362240000,-501.0,0.00018689,2]
[424970425,1781362240000,-2273.44852229,0.000189,2]
[424970424,1781362240000,-842.51,0.0001872,2]
[424970427,1781362240000,-1126.49,0.00019,7]
[424970428,1781362240000,-12309.78324661,0.00019054,2]
[424970418,1781362240000,-951.9,0.0001841,2]
[424970420,1781362240000,-2157.14243826,0.00018532,2]
[424970415,1781362240000,-501.0,0.00018,2]
[424970403,1781362240000,-500.0,0.00017984,2]
[424970417,1781362240000,-2273.44852229,0.000184,2]
[424970414,1781362240000,-2273.44852229,0.00018,2]
[424970413,1781362240000,-500.0,0.00017984,2]
[424970412,1781362240000,-500.0,0.00017984,2]
[424970410,1781362240000,-500.0,0.00017984,2]
[424970409,1781362240000,-151.0,0.00017984,2]
[424970411,1781362240000,-151.0,0.00017984,2]
[424970408,1781362240000,-500.0,0.00017984,2]
[424970407,1781362240000,-151.0,0.00017984,2]
[424970406,1781362240000,-500.0,0.00017984,2]
[424970404,1781362240000,-151.0,0.00017984,2]
[424970405,1781362240000,-151.0,0.00017984,2]
[424970430,1781362240000,-216.02215792,0.00013699,2]
[424970416,1781362240000,-2273.44852229,0.000182,2]
[424970431,1781362240000,-934.0,0.000175,2]
[424970429,1781362240000,-307.9,9.597e-05,2]
[424970432,1781362240000,-26844.92070678,0.00019054,2]
[424970436,1781362240000,-500.0,0.00019262,2]
[424970456,1781362240000,-1194.0,0.0002,2]
[424970460,1781362240000,-951.9,0.00020381,2]
[424970459,1781362240000,-2405.55389863,0.00020176,2]
[424970458,1781362240000,-300.0,0.000201,10]
[424970457,1781362240000,-501.0,0.00020067,3]
[424970455,1781362240000,-289.0,0.0002,2]
[424970454,1781362240000,-4655.18,0.0002,2]
[424970452,1781362240000,-344.0,0.0002,2]
[424970451,1781362240000,-1905.0,0.0002,2]
[424970447,1781362240000,-327.0,0.0002,2]
[424970448,1781362240000,-258.0,0.0002,2]
[424970446,1781362240000,-271.0,0.0002,2]
[424970453,1781362240000,-213.0,0.0002,2]
[424970450,1781362240000,-200.0,0.0002,10]
[424970445,1781362240000,-168.0,0.0002,2]
[424970433,1781362240000,-2236.95670847,0.0001908,2]
[424970437,1781362240000,-2273.44852229,0.000193,2]
[424970435,1781362240000,-216.02215792,0.00019178,2]
[424970441,1781362240000,-2273.44852229,0.000197,2]
[424970440,1781362240000,-2319.72410669,0.00019628,2]
[424970438,1781362240000,-501.0,0.00019378,3]
[424970434,1781362240000,-2273.44852229,0.000191,2]
[424970439,1781362240000,-2273.44852229,0.000195,2]
[424970443,1781362240000,-173.591583,0.0002,2]
[424970449,1781362240000,-430.0,0.0002,2]
[424970444,1781362240000,-597.0,0.0002,2]
[424970442,1781362240000,-2000.0,0.0002,7]
[424970495,1781362241000,-501.0,0.00021444,5]
[424970504,1781362241000,-168.0,0.00022,2]
[424970502,1781362241000,-173.591583,0.00022,2]
[424970499,1781362241000,-150.0,0.00021918,2]
[424970501,1781362241000,-981.0,0.00021961,2]
[424970491,1781362241000,-166.07,0.00021205,2]
[424970498,1781362241000,-5000.0,0.00021918,2]
[424970497,1781362241000,-2682.57183977,0.0002182,2]
[424970496,1781362241000,-4655.18,0.00021658,2]
[424970494,1781362241000,-500.0,0.00021425,2]
[424970503,1781362241000,-597.0,0.00022,2]
[424970500,1781362241000,-981.0,0.00021918,2]
[424970505,1781362241000,-271.0,0.00022,2]
[424970520,1781362241000,-39154.70395339,0.00022691,2]
[424970507,1781362241000,-258.0,0.00022,2]
[424970508,1781362241000,-430.0,0.00022,2]
[424970511,1781362241000,-344.0,0.00022,2]
[424970509,1781362241000,-1905.0,0.00022,2]
[424970510,1781362241000,-265.58,0.00022,2]
[424970513,1781362241000,-289.0,0.00022,2]
[424970512,1781362241000,-213.0,0.00022,2]
[424970515,1781362241000,-200.0,0.00022118,2]
[424970517,1781362241000,-501.0,0.00022133,5]
[424970516,1781362241000,-500.0,0.00022133,2]
[424970514,1781362241000,-1194.0,0.00022,2]
[424970518,1781362241000,-951.9,0.00022353,2]
[424970490,1781362241000,-1194.0,0.00021,2]
[424970506,1781362241000,-327.0,0.00022,2]
[424970493,1781362241000,-500.0,0.00021397,2]
[424970476,1781362241000,-39154.70395339,0.00020873,2]
[424970489,1781362241000,-289.0,0.00021,2]
[424970519,1781362241000,-2781.82699784,0.00022368,2]
[424970462,1781362241000,-1359.0,0.000205,2]
[424970461,1781362241000,-3557.0,0.000205,2]
[424970463,1781362241000,-383.0,0.000205,2]
[424970467,1781362241000,-6076.0,0.000205,2]
[424970465,1781362241000,-1228.0,0.000205,2]
[424970464,1781362241000,-1275.0,0.000205,2]
[424970466,1781362241000,-150.0,0.000205,2]
[424970469,1781362241000,-150.0,0.000205,2]
[424970468,1781362241000,-150.0,0.000205,2]
[424970474,1781362241000,-501.0,0.00020756,4]
[424970472,1781362241000,-934.0,0.000205,2]
[424970471,1781362241000,-150.0,0.000205,2]
[424970492,1781362241000,-2586.85809042,0.00021272,2]
[424970473,1781362241000,-2494.55939288,0.00020724,2]
[424970475,1781362241000,-6384.30710499,0.00020836,2]
[424970477,1781362241000,-600.0,0.0002097,2]
[424970478,1781362241000,-200.0,0.00021,2]
[424970480,1781362241000,-597.0,0.00021,2]
[424970479,1781362241000,-3500.0,0.00021,3]
[424970481,1781362241000,-168.0,0.00021,2]
[424970486,1781362241000,-1905.0,0.00021,2]
[424970483,1781362241000,-327.0,0.00021,2]
[424970487,1781362241000,-344.0,0.00021,2]
[424970484,1781362241000,-258.0,0.00021,2]
[424970482,1781362241000,-271.0,0.00021,2]
[424970488,1781362241000,-213.0,0.00021,2]
[424970485,1781362241000,-430.0,0.00021,2]
[424970470,1781362241000,-150.0,0.000205,2]
[424970522,1781362241000,-501.0,0.00022822,6]
[424970532,1781362241000,-271.0,0.00023,2]
[424970523,1781362241000,-287.07307355,0.00022875,7]
[424970556,1781362241000,-150.0,0.000235,2]
[424970554,1781362241000,-6076.0,0.000235,2]
[424970559,1781362241000,-501.0,0.00023511,7]
[424970558,1781362241000,-934.0,0.000235,2]
[424970560,1781362241000,-412.57046728,0.00023621,2]
[424970562,1781362241000,-1025.046,0.00023875,7]